bitfinex-derivatives/quotes_ETHF0:USTF0_20250103
["timestamp","ask_amount","ask_price","bid_price","bid_amount"]
[1735878008788,0.28873,3466.3,3466.2,0.28874]
[1735878010683,6.90267117,3466.4,3466.2,0.28874]
[1735878011078,0.28873,3466.3,3466.2,0.28874]
[1735878012176,6.90267117,3466.4,3466.2,0.28874]
[1735878012576,6.90267117,3466.4,3465.7,2.27504941]
[1735878012795,6.61394117,3466.4,3466.3,0.28873]
[1735878013482,3.2078,3466.4,3466.3,0.28873]
[1735878016288,3.40614117,3466.5,3466.1,0.28875]
[1735878016483,3.40614117,3466.5,3466.3,0.28872]
[1735878017481,3.40614117,3466.4,3466.3,0.28872]
[1735878018791,0.28874,3466.3,3466.1,0.28875]
[1735878019596,3.40614117,3466.4,3465.9,3.2078]
[1735878019893,3.69487117,3466.4,3466.2,0.28874]
[1735878020797,0.28873,3466.3,3466.1,0.28874]
[1735878021095,3.69487117,3466.4,3466.0,0.28876]
[1735878021288,3.69487117,3466.4,3466.1,0.28874]
[1735878021490,3.69487117,3466.4,3466.2,0.28874]
[1735878021694,3.40614117,3466.3,3466.2,0.28874]
[1735878026198,4.83083601,3466.4,3466.2,0.28874]
[1735878026601,4.54210601,3466.4,3466.3,0.28873]
[1735878027003,4.83083601,3466.4,3466.2,0.28874]
[1735878027501,4.83082601,3466.5,3466.3,0.28873]
[1735878028801,4.54210601,3466.4,3466.3,0.28873]
[1735878033707,3.40575828,3466.4,3466.3,0.28873]
[1735878035209,3.40575828,3466.4,3466.3,3.49653]
[1735878036202,3.40575828,3466.7,3466.3,15.59207714]
[1735878036406,3.40575828,3466.7,3466.6,0.28871]
[1735878042018,3.40575828,3466.7,3466.5,0.99985525]
[1735878042214,3.40575828,3466.7,3466.6,0.28871]
[1735878042424,4.83079601,3466.8,3466.6,0.28871]
[1735878042721,4.83079601,3466.8,3466.7,0.99985525]
[1735878043318,4.54210601,3466.8,3466.5,0.99985525]
[1735878043519,0.28871,3466.6,3466.4,0.28872]
[1735878043716,0.99985525,3466.6,3466.3,4.53865379]
[1735878044021,1.28857525,3466.4,3466.3,4.53865379]
[1735878044619,5.83068126,3466.4,3466.1,1.28859525]
[1735878044820,5.83068126,3466.4,3466.1,0.99985525]
[1735878045124,5.83068126,3466.4,3466.2,0.28874]
[1735878046026,5.54196126,3466.4,3466.1,0.99985525]
[1735878046326,4.83083601,3466.4,3466.2,0.28874]
[1735878046526,4.83083601,3466.4,3466.1,1.28860525]
[1735878047426,3.40472963,3466.2,3466.1,1.28860525]
[1735878050421,3.40472963,3466.2,3466.1,4.49640525]
[1735878051225,3.40472963,3466.5,3466.4,0.28872]
[1735878051423,3.40472963,3466.5,3466.4,1.28857525]
[1735878052226,4.54210601,3466.6,3466.5,0.28871]
[1735878053130,4.83080601,3466.7,3466.5,0.28871]
[1735878053318,4.83080601,3466.7,3466.6,0.99985525]
[1735878053725,4.83080601,3466.7,3466.6,1.28856525]
[1735878054023,4.83080601,3466.7,3466.6,0.28871]
[1735878054422,4.54210601,3466.7,3466.6,0.28871]
[1735878055030,4.83080601,3466.7,3466.6,0.28871]
[1735878055529,0.2887,3466.7,3466.6,0.28871]
[1735878056531,5.67564359,3466.8,3466.4,0.99985525]
[1735878056733,5.96433359,3466.8,3466.7,0.2887]
[1735878057627,5.67564359,3466.8,3466.7,0.2887]
[1735878059532,5.96433359,3466.8,3466.7,0.2887]
[1735878062530,5.67564359,3466.8,3466.7,0.2887]
[1735878062732,5.96433359,3466.8,3466.7,0.2887]
[1735878063031,5.67564359,3466.8,3466.7,0.2887]
[1735878064031,5.96433359,3466.8,3466.7,0.2887]
[1735878064235,5.67564359,3466.8,3466.7,0.2887]
[1735878064436,5.96433359,3466.8,3466.7,0.2887]
[1735878065136,5.67564359,3466.8,3466.7,0.2887]
[1735878065534,5.96433359,3466.8,3466.7,0.2887]
[1735878066039,0.28869,3466.8,3466.7,0.2887]
[1735878066631,5.67564359,3466.9,3466.6,0.99985525]
[1735878066833,5.67564359,3466.9,3466.8,1.28854525]
[1735878068237,4.54062313,3467.0,3466.9,0.28868]
[1735878084748,3.40397259,3467.0,3466.8,0.99985525]
[1735878085047,3.40397259,3467.0,3466.9,0.28868]
[1735878086049,4.54062313,3467.1,3467.0,0.28867]
[1735878086350,4.54062313,3467.1,3467.0,1.28852525]
[1735878089951,4.54062313,3467.2,3467.1,0.28867]
[1735878091248,5.96428359,3467.4,3467.2,0.28866]
[1735878091249,4.54062313,3467.3,3467.2,0.28866]
[1735878091849,4.54062313,3467.3,3467.2,1.28851525]
[1735878093452,4.54062313,3467.4,3467.3,0.28865]
[1735878097153,4.54062313,3467.4,3467.3,3.49645]
[1735878097542,3.40370303,3467.4,3467.3,3.49645]
[1735878099144,3.40370303,3467.8,3467.3,9.08331083]
[1735878099349,3.40370303,3467.8,3467.7,1.28847525]
[1735878100456,3.40370303,3467.9,3467.8,0.28861]
[1735878102153,3.40370303,3467.9,3467.8,3.49641]
[1735878102755,3.40370303,3468.1,3468.0,0.28859]
[1735878102951,3.40370303,3468.1,3468.0,1.28844525]
[1735878103855,3.40370303,3468.4,3468.0,0.99985525]
[1735878104051,3.40370303,3468.4,3468.1,0.99985525]
[1735878104258,0.28859,3468.0,3467.8,3.4964]
[1735878104457,0.2886,3467.9,3467.8,3.2078]
[1735878105058,0.28862,3467.7,3467.5,0.99985525]
[1735878105564,0.28862,3467.6,3467.5,0.99985525]
[1735878106759,0.28862,3467.7,3467.5,1.28848525]
[1735878106961,0.28862,3467.7,3467.5,0.28863]
[1735878107160,0.28862,3467.7,3467.6,0.99985525]
[1735878107759,3.69232303,3467.7,3467.6,0.99985525]
[1735878108354,3.69232303,3467.7,3467.5,0.28863]
[1735878108950,3.40370303,3467.7,3467.4,3.2078]
[1735878109155,0.28863,3467.5,3467.4,3.2078]
[1735878110066,3.40370303,3467.7,3467.4,3.2078]
[1735878110563,3.69232303,3467.7,3467.5,0.28863]
[1735878110758,3.40370303,3467.7,3467.4,3.2078]
[1735878111064,0.28862,3467.6,3467.4,3.49644]
[1735878112065,0.28863,3467.5,3467.4,3.2078]
[1735878112562,3.40370303,3467.7,3467.4,3.2078]
[1735878112757,0.28863,3467.6,3467.4,3.49644]
[1735878113558,0.28862,3467.6,3467.4,3.2078]
[1735878113761,3.40370303,3467.7,3467.4,3.2078]
[1735878113962,0.28863,3467.5,3467.4,3.2078]
[1735878114466,0.28868,3466.9,3466.8,4.53114483]
[1735878114964,0.28868,3466.9,3466.8,3.83244483]
[1735878115167,0.28869,3466.8,3466.7,6.636809]
[1735878115568,7.27307378,3467.0,3466.1,6.636809]
[1735878115569,0.28874,3466.3,3466.1,6.636809]
[1735878116768,0.28874,3466.3,3466.1,6.925559]
[1735878117263,3.2078,3466.4,3466.1,0.28875]
[1735878117264,3.40370303,3466.2,3466.1,0.28875]
[1735878118363,2.26511401,3466.2,3466.1,0.28875]
[1735878121063,2.26511401,3466.3,3466.2,0.28874]
[1735878121271,2.26511401,3466.3,3466.2,2.56181378]
[1735878122373,3.2078,3466.4,3466.3,0.28873]
[1735878123975,2.26511401,3466.5,3466.3,0.28873]
[1735878124473,2.55383401,3466.5,3466.3,0.28873]
[1735878124876,2.55383401,3466.5,3466.2,2.56181378]
[1735878125478,0.28873,3466.4,3466.2,0.28874]
[1735878125865,2.55383401,3466.5,3466.2,0.28874]
[1735878126276,2.55383401,3466.5,3466.3,0.28873]
[1735878126574,2.26511401,3466.5,3466.4,0.28872]
[1735878126978,2.26511401,3466.5,3466.3,0.28873]
[1735878127169,0.28872,3466.5,3466.3,0.28873]
[1735878128282,2.55383401,3466.5,3466.3,0.28873]
[1735878129181,2.26511401,3466.5,3466.4,0.28872]
[1735878129481,2.26511401,3466.5,3466.2,2.27307378]
[1735878129482,2.26511401,3466.6,3466.2,2.27307378]
[1735878129685,2.26511401,3466.6,3466.5,0.28872]
[1735878130683,5.76161401,3466.7,3466.5,0.28872]
[1735878131069,2.26511401,3466.7,3466.6,0.28871]
[1735878133078,0.28868,3466.9,3466.7,0.28869]
[1735878136583,0.28868,3466.9,3466.8,0.28869]
[1735878136778,2.26511401,3467.0,3466.5,2.27307378]
[1735878136982,2.26511401,3467.0,3466.9,0.28868]
[1735878137485,2.55378401,3467.0,3466.9,0.28868]
[1735878138289,2.55378401,3467.0,3466.8,0.28869]
[1735878138591,2.55378401,3467.1,3466.9,0.28868]
[1735878140498,0.28867,3467.0,3466.9,0.28868]
[1735878141189,0.28867,3467.1,3467.0,0.28867]
[1735878141388,0.28867,3467.1,3466.5,2.27307378]
[1735878141591,0.28867,3467.1,3467.0,0.28867]
[1735878142190,0.28868,3467.0,3466.9,1.28821668]
[1735878142694,2.26511401,3467.2,3466.9,0.99953668]
[1735878142896,2.26511401,3467.2,3467.0,0.28867]
[1735878143097,2.26511401,3467.2,3466.9,0.99953668]
[1735878143297,0.28867,3467.1,3466.9,1.28821668]
[1735878144792,2.26511401,3467.2,3466.9,1.28821668]
[1735878144793,2.55377401,3467.2,3467.1,0.28867]
[1735878145100,2.55377401,3467.2,3467.1,0.99953668]
[1735878146899,0.28867,3467.0,3466.9,1.28821668]
[1735878148096,2.26511401,3467.2,3466.9,0.99953668]
[1735878148398,0.28867,3467.0,3466.9,1.28821668]
[1735878148799,2.26511401,3467.1,3466.9,1.28821668]
[1735878148800,2.55378401,3467.1,3467.0,0.28867]
[1735878149996,0.28867,3467.0,3466.9,1.28821668]
[1735878150200,0.28867,3467.0,3466.9,0.99953668]
[1735878151099,2.55378401,3467.0,3466.9,0.99953668]
[1735878152132,3.69237303,3467.0,3466.9,0.99953668]
[1735878153325,0.28867,3467.0,3466.9,0.99953668]
[1735878154227,4.54062313,3467.1,3466.7,4.20733668]
[1735878154228,0.28869,3466.8,3466.7,4.20733668]
[1735878154626,0.28869,3466.8,3466.7,0.99953668]
[1735878155527,3.68831931,3466.8,3466.7,0.99953668]
[1735878156403,0.28869,3466.8,3466.7,0.99953668]
[1735878156610,0.28871,3466.6,3466.5,0.99953668]
[1735878157604,3.68963163,3466.6,3466.5,0.99953668]
[1735878158502,3.68963163,3466.6,3466.5,1.28825668]
[1735878161007,3.40092163,3466.6,3466.5,1.28825668]
[1735878161311,3.68963163,3466.6,3466.5,1.28825668]
[1735878161611,3.40092163,3466.6,3466.5,1.28825668]
[1735878162111,4.82932313,3466.7,3466.5,0.99953668]
[1735878162312,4.82932313,3466.7,3466.5,1.28824668]
[1735878163410,4.82932313,3466.7,3466.5,0.99953668]
[1735878163612,4.82932313,3466.7,3466.6,0.28871]
[1735878164617,4.82932313,3466.7,3466.5,0.99953668]
[1735878164810,0.28871,3466.6,3466.5,1.28824668]
[1735878165714,4.82933313,3466.6,3466.5,1.28824668]
[1735878166716,4.82933313,3466.6,3466.5,0.99953668]
[1735878167710,0.28872,3466.5,3466.4,0.28872]
[1735878167914,6.67518027,3466.7,3466.2,3.49654]
[1735878168211,0.28872,3466.5,3466.3,0.28872]
[1735878169214,4.82961074,3466.5,3466.3,0.28872]
[1735878170013,4.54089074,3466.4,3466.2,4.20733668]
[1735878170212,4.54089074,3466.4,3466.3,0.28873]
[1735878171619,4.82961074,3466.5,3466.4,0.28872]
[1735878171819,4.82961074,3466.5,3466.4,1.28825668]
[1735878173215,0.28872,3466.5,3466.4,1.28825668]
[1735878174313,5.96435359,3466.6,3466.4,1.28825668]
[1735878175820,5.67564359,3466.6,3466.4,1.28825668]
[1735878176010,0.28872,3466.5,3466.4,1.28825668]
[1735878176410,0.28872,3466.5,3466.4,0.99953668]
[1735878176920,0.28872,3466.5,3466.4,1.28825668]
[1735878177824,0.28872,3466.5,3466.4,0.28872]
[1735878178224,0.28872,3466.5,3466.2,0.99953668]
[1735878178623,0.28872,3466.5,3466.4,0.28872]
[1735878180027,1.28825668,3466.5,3466.4,0.28872]
[1735878181126,0.28872,3466.5,3466.4,0.28872]
[1735878183331,0.28873,3466.4,3466.3,0.28873]
[1735878184529,0.99953668,3466.5,3465.8,3.2078]
[1735878184730,0.28876,3466.0,3465.9,0.28876]
[1735878186430,0.28876,3466.0,3465.8,4.49610668]
[1735878187127,0.99953668,3466.1,3465.8,0.99953668]
[1735878187431,0.28877,3465.9,3465.8,1.28830668]
[1735878187831,0.99953668,3466.1,3465.9,0.28877]
[1735878187832,0.28876,3466.0,3465.9,0.28877]
[1735878189120,0.99953668,3466.3,3465.8,1.28830668]
[1735878189327,0.28876,3466.0,3465.8,1.28830668]
[1735878190429,0.28877,3465.9,3465.8,0.28877]
[1735878190825,0.99953668,3465.9,3465.7,12.25641889]
[1735878191033,0.28877,3465.8,3465.7,12.25641889]
[1735878192732,4.82709163,3465.8,3465.7,3.2078]
[1735878193321,4.82709163,3465.8,3465.7,3.49658]
[1735878193726,4.82709163,3465.8,3465.7,3.2078]
[1735878194128,4.53832163,3465.8,3465.7,4.49611668]
[1735878195334,3.40221158,3465.8,3465.7,4.20733668]
[1735878195533,3.40221158,3465.8,3465.7,4.49611668]
[1735878196933,3.40221158,3465.9,3465.8,0.28877]
[1735878198034,0.28877,3465.8,3465.7,4.49611668]
[1735878198233,0.28877,3465.8,3465.7,3.49658]
[1735878198729,1.28830668,3465.8,3465.7,3.2078]
[1735878199339,4.40174826,3465.8,3465.4,2.23605096]
[1735878199532,0.2888,3465.5,3465.4,2.52485096]
[1735878199730,0.99953668,3465.6,3465.3,3.2078]
[1735878199928,1.28834668,3465.4,3465.3,3.2078]
[1735878200539,3.55671469,3465.4,3465.3,3.2078]
[1735878200740,2.55717801,3465.4,3465.3,3.2078]
[1735878200939,3.55671469,3465.4,3465.3,3.2078]
[1735878201939,1.28834668,3465.4,3465.3,3.2078]
[1735878203240,4.68919105,3465.4,3465.3,3.2078]
[1735878206042,1.28834668,3465.4,3465.3,3.49662]
[1735878206543,1.28834668,3465.4,3465.3,3.2078]
[1735878207945,1.28834668,3465.4,3465.3,0.28882]
[1735878209744,0.99953668,3465.4,3465.1,3.2078]
[1735878210042,0.28882,3465.3,3465.2,0.28882]
[1735878210637,2.55483291,3465.3,3465.2,0.28882]
[1735878211549,2.26601291,3465.3,3465.2,0.28882]
[1735878213044,2.55483291,3465.3,3465.2,0.28882]
[1735878215348,2.55483291,3465.3,3465.1,3.2078]
[1735878215547,2.55483291,3465.3,3465.1,3.49663]
[1735878215746,3.68966437,3465.3,3465.1,3.49663]
[1735878216555,3.68966437,3465.3,3465.2,0.28882]
[1735878218550,0.28883,3465.2,3465.1,0.28883]
[1735878218757,3.40084437,3465.3,3465.1,0.28883]
[1735878218758,3.68966437,3465.3,3465.1,0.28883]
[1735878218957,3.68966437,3465.3,3464.9,0.99953668]
[1735878219159,3.68966437,3465.3,3465.2,0.28882]
[1735878219855,3.40084437,3465.2,3465.1,0.28883]
[1735878225058,3.68966437,3465.2,3465.1,0.28883]
[1735878226863,0.28882,3465.2,3465.1,0.28883]
[1735878228556,4.82714163,3465.3,3465.1,0.28883]
[1735878230160,4.53832163,3465.3,3465.2,0.28882]
[1735878236355,4.82714163,3465.3,3465.2,0.28882]
[1735878237158,9.16951204,3465.4,3465.2,0.28882]
[1735878238365,8.88070204,3465.4,3465.2,0.28882]
[1735878238569,9.16951204,3465.4,3465.2,0.28882]
[1735878239370,9.16951204,3465.4,3465.1,0.99953668]
[1735878239371,8.88070204,3465.4,3465.1,0.99953668]
[1735878239571,8.88070204,3465.4,3465.3,1.28835668]
[1735878240658,8.88070204,3465.4,3465.3,0.28882]
[1735878241069,3.2078,3465.4,3465.3,0.28882]
[1735878242366,3.49661,3465.4,3465.3,0.28882]
[1735878242973,4.20733668,3465.4,3464.9,4.53849887]
[1735878243160,0.28883,3465.2,3465.1,0.28883]
[1735878243467,0.99953668,3465.2,3465.0,0.28884]
[1735878243665,1.28836668,3465.2,3465.0,0.28884]
[1735878244272,1.28836668,3465.2,3465.1,0.28883]
[1735878244771,6.96126872,3465.2,3465.1,0.28883]
[1735878245872,6.96126872,3465.2,3464.8,0.99953668]
[1735878245873,0.99953668,3465.2,3464.8,0.99953668]
[1735878246075,1.28836668,3465.2,3465.0,0.28883]
[1735878246273,1.28836668,3465.2,3465.1,0.28883]
[1735878246470,0.99953668,3465.2,3465.1,0.28883]
[1735878246867,1.28835668,3465.2,3465.1,0.28883]
[1735878249076,0.99953668,3465.2,3464.8,0.99953668]
[1735878249277,0.99953668,3465.2,3465.0,0.28884]
[1735878249578,1.28836668,3465.2,3465.0,0.28884]
[1735878249979,1.28836668,3465.2,3465.1,0.28883]
[1735878250679,0.28885,3464.9,3464.8,0.28886]
[1735878250876,0.28885,3464.9,3464.7,4.82735887]
[1735878251077,1.28839668,3464.8,3464.7,4.53849887]
[1735878252369,0.28889,3464.5,3464.3,4.53849887]
[1735878252576,0.99953668,3464.4,3464.3,4.53849887]
[1735878253469,1.28842668,3464.4,3464.3,4.53849887]
[1735878253675,6.96908682,3464.4,3464.3,0.2889]
[1735878254475,6.96908682,3464.4,3464.1,3.2078]
[1735878254476,1.28842668,3464.4,3464.2,0.2889]
[1735878254679,5.96955014,3464.5,3464.3,0.2889]
[1735878254874,5.68066014,3464.5,3464.4,0.28889]
[1735878255882,6.96907682,3464.6,3464.4,0.28889]
[1735878256182,0.28888,3464.5,3464.3,0.28889]
[1735878256378,6.68019682,3464.6,3464.3,0.2889]
[1735878256578,0.28888,3464.5,3464.3,0.28889]
[1735878257084,4.82779492,3464.5,3464.3,0.28889]
[1735878258177,4.53891492,3464.5,3464.0,0.99953668]
[1735878258386,0.2889,3464.3,3464.1,0.28891]
[1735878258976,0.28891,3464.2,3464.0,1.28845668]
[1735878259179,0.28892,3464.0,3463.9,3.2078]
[1735878259485,1.28845668,3464.0,3463.9,3.49673]
[1735878259879,1.28845668,3464.0,3463.9,3.2078]
[1735878261181,0.99953668,3464.0,3463.5,3.49676]
[1735878261485,1.28848668,3463.7,3463.5,3.49676]
[1735878261981,0.99953668,3463.7,3463.5,3.49676]
[1735878262186,0.99953668,3463.7,3463.6,0.28896]
[1735878262382,3.26644343,3463.7,3463.6,0.28896]
[1735878262591,3.26644343,3463.7,3463.5,3.2078]
[1735878262592,3.55539343,3463.7,3463.5,3.49677]
[1735878262890,3.26644343,3463.7,3463.6,0.28896]
[1735878263281,3.55539343,3463.7,3463.5,0.28896]
[1735878263481,3.26644343,3463.7,3463.5,0.28896]
[1735878263887,3.26644343,3463.7,3463.6,0.28896]
[1735878265991,0.28896,3463.6,3463.3,0.28898]
[1735878266287,0.99953668,3463.4,3463.3,0.28898]
[1735878266881,0.28896,3463.6,3463.3,0.28898]
[1735878266882,1.28849668,3463.6,3463.3,0.28898]
[1735878267382,1.28849668,3463.6,3463.4,0.28897]
[1735878267583,4.68885681,3463.6,3463.4,0.28897]
[1735878268590,4.68885681,3463.6,3463.1,0.99953668]
[1735878268591,2.26263671,3463.5,3463.1,0.99953668]
[1735878268787,2.26263671,3463.5,3463.3,0.28898]
[1735878269592,3.55113339,3463.6,3463.3,0.28898]
[1735878269789,3.26217339,3463.6,3463.1,0.99953668]
[1735878270095,3.26217339,3463.6,3463.5,0.28897]
[1735878271093,0.99953668,3463.6,3463.5,0.28897]
[1735878274298,1.28849668,3463.6,3463.5,0.28897]
[1735878278897,0.28896,3463.6,3463.5,0.28897]
[1735878279091,0.99953668,3463.7,3463.3,0.99953668]
[1735878279298,1.28848668,3463.7,3463.3,0.99953668]
[1735878279504,1.28848668,3463.7,3463.5,0.28896]
[1735878279801,0.28896,3463.6,3463.5,0.28896]
[1735878280895,0.99953668,3463.7,3463.6,0.28896]
[1735878280896,1.28848668,3463.7,3463.6,0.28896]
[1735878281597,0.99953668,3463.7,3463.6,0.28896]
[1735878281791,1.28848668,3463.7,3463.6,0.28896]
[1735878282191,0.28896,3463.6,3463.5,0.28896]
[1735878282592,1.28848668,3463.7,3463.6,0.28896]
[1735878282794,0.28896,3463.6,3463.5,0.28896]
[1735878285603,1.28848668,3463.7,3463.6,0.28896]
[1735878285796,0.28896,3463.6,3463.5,0.28896]
[1735878286095,0.28894,3463.8,3463.7,0.28894]
[1735878286300,2.26263671,3463.9,3463.8,0.28894]
[1735878286595,2.26263671,3463.9,3463.5,4.20733668]
[1735878286799,0.28894,3463.8,3463.7,0.28895]
[1735878288298,1.28847668,3463.9,3463.8,0.28894]
[1735878288493,1.28847668,3463.9,3463.7,0.28894]
[1735878289403,0.28894,3463.8,3463.7,0.28895]
[1735878289798,0.99953668,3463.9,3463.7,0.28895]
[1735878290007,3.55110339,3463.9,3463.5,4.20733668]
[1735878290304,3.55110339,3463.9,3463.7,0.28894]
[1735878290998,0.28894,3463.8,3463.7,0.28894]
[1735878291606,1.28847668,3463.9,3463.6,0.28896]
[1735878291808,0.99953668,3463.9,3463.5,4.20733668]
[1735878292105,5.75936671,3464.0,3463.9,0.28893]
[1735878293811,6.89709013,3464.0,3463.9,0.28893]
[1735878294210,6.60816013,3464.0,3463.7,0.99953668]
[1735878294509,0.28893,3463.9,3463.8,0.28894]
[1735878295005,6.89709013,3464.0,3463.9,0.28893]
[1735878295204,0.28894,3463.9,3463.8,0.28894]
[1735878296409,0.28894,3463.8,3463.7,0.28895]
[1735878298104,0.28896,3463.6,3463.5,0.28896]
[1735878298299,1.28849668,3463.6,3463.5,0.28897]
[1735878298505,0.99953668,3463.6,3463.4,3.2078]
[1735878298698,0.28897,3463.5,3463.4,3.49677]
[1735878299310,0.28897,3463.5,3463.4,3.2078]
[1735878301012,2.55707522,3463.5,3463.4,3.2078]
[1735878301911,2.55707522,3463.5,3463.4,4.20733668]
[1735878301912,2.26810522,3463.5,3463.4,4.20733668]
[1735878302116,2.55707522,3463.5,3463.4,4.49630668]
[1735878303410,0.28897,3463.5,3463.4,4.49630668]
[1735878304622,3.69044463,3463.5,3463.4,4.49630668]
[1735878304816,3.40147463,3463.5,3463.4,4.49630668]
[1735878305013,3.69044463,3463.5,3463.4,4.49630668]
[1735878306017,0.28897,3463.5,3463.4,4.49630668]
[1735878306418,0.28897,3463.5,3463.4,1.28850668]
[1735878306917,4.53891492,3463.5,3463.4,1.28850668]
[1735878307117,4.82788492,3463.5,3463.3,0.28898]
[1735878307423,4.82788492,3463.5,3463.4,0.28897]
[1735878307621,4.82788492,3463.5,3463.3,0.28898]
[1735878307622,0.28898,3463.4,3463.3,0.28898]
[1735878307915,0.28898,3463.4,3463.2,4.82748887]
[1735878308117,4.82788492,3463.5,3463.3,0.28898]
[1735878308510,4.53891492,3463.4,3463.3,0.28898]
[1735878312320,0.28899,3463.2,3463.1,4.53849887]
[1735878312519,1.28852668,3463.2,3463.1,4.53849887]
[1735878313330,0.289,3463.1,3463.0,3.2078]
[1735878313511,1.28852668,3463.2,3463.0,3.4968]
[1735878314435,6.96918682,3463.2,3463.0,3.4968]
[1735878315317,0.289,3463.1,3463.0,3.2078]
[1735878315516,4.82906577,3463.1,3463.0,3.2078]
[1735878316924,0.289,3463.1,3463.0,3.2078]
[1735878317324,6.68019682,3463.2,3462.6,4.53849887]
[1735878317325,0.28903,3462.7,3462.6,4.53849887]
[1735878317521,1.28856668,3462.7,3462.6,4.53849887]
[1735878318730,5.82545666,3462.7,3462.5,0.28904]
[1735878319727,5.82545666,3462.7,3462.4,0.28905]
[1735878319728,5.53642666,3462.7,3462.4,0.28905]
[1735878319924,0.28904,3462.6,3462.4,0.28905]
[1735878321230,3.39916608,3462.5,3462.4,0.28905]
[1735878322434,0.99953668,3462.5,3462.3,0.28906]
[1735878322636,1.28858668,3462.5,3462.3,0.28906]
[1735878322931,1.28858668,3462.5,3462.2,3.49687]
[1735878323428,1.28858668,3462.5,3462.2,0.28907]
[1735878323628,2.55401296,3462.4,3462.1,0.99953668]
[1735878323830,1.28860668,3462.3,3461.8,3.2078]
[1735878324126,0.99953668,3461.9,3461.8,3.49691]
[1735878324628,0.99953668,3461.9,3461.8,3.2078]
[1735878324629,1.28863668,3461.9,3461.8,3.2078]
[1735878325832,3.55358964,3461.9,3461.8,3.2078]
[1735878326630,3.26448964,3461.9,3461.8,3.49691]
[1735878327235,3.55358964,3461.9,3461.8,3.2078]
[1735878327832,3.55358964,3461.9,3461.8,3.49691]
[1735878328032,3.55358964,3461.9,3461.8,3.2078]
[1735878328433,1.28863668,3461.9,3461.8,3.2078]
[1735878329235,1.28863668,3461.9,3461.8,3.49691]
[1735878329428,0.99953668,3461.9,3461.8,3.49691]
[1735878329933,3.26448964,3462.1,3461.8,3.2078]
[1735878330133,3.26448964,3462.1,3462.0,0.28909]
[1735878330336,2.26495296,3462.1,3462.0,0.28909]
[1735878330634,2.55403296,3462.2,3462.0,0.28909]
[1735878331431,0.28908,3462.1,3462.0,0.28909]
[1735878331729,2.55403296,3462.2,3461.8,3.2078]
[1735878331936,0.28907,3462.3,3461.8,3.2078]
[1735878332124,0.28907,3462.3,3462.1,0.28907]
[1735878332437,0.28907,3462.3,3462.2,0.28907]
[1735878332938,0.28907,3462.3,3462.1,0.28908]
[1735878333133,0.28907,3462.2,3462.1,0.28908]
[1735878333330,2.26495296,3462.4,3461.8,3.2078]
[1735878333536,2.28045999,3462.2,3461.8,3.2078]
[1735878333737,0.2891,3461.9,3461.8,3.2078]
[1735878337739,0.2891,3461.9,3461.8,3.49691]
[1735878338038,0.2891,3461.9,3461.8,3.2078]
[1735878339638,0.2891,3461.9,3461.8,3.49691]
[1735878341041,0.2891,3461.9,3461.8,3.2078]
[1735878341343,0.2891,3461.9,3461.8,3.49691]
[1735878341645,2.26495296,3462.3,3461.8,3.2078]
[1735878341846,2.55402296,3462.3,3462.2,0.28907]
[1735878342240,0.28908,3462.2,3462.1,0.28908]
[1735878342736,0.28907,3462.3,3462.1,0.28908]
[1735878342955,0.28907,3462.3,3462.2,0.28907]
[1735878343441,0.28908,3462.2,3462.1,0.28908]
[1735878343640,5.47275296,3462.5,3461.8,3.2078]
[1735878344043,5.47275296,3462.5,3462.4,0.28906]
[1735878344243,5.76180296,3462.5,3462.4,0.28906]
[1735878344846,5.47275296,3462.5,3462.4,0.28906]
[1735878345251,3.2078,3462.5,3462.4,0.28906]
[1735878345649,2.26495296,3462.7,3462.6,0.28904]
[1735878347053,0.28902,3462.9,3462.7,0.28903]
[1735878347553,0.28903,3462.8,3462.3,0.28907]
[1735878347848,0.28906,3462.4,3462.2,0.28907]
[1735878352648,2.55401296,3462.4,3462.2,0.28907]
[1735878352951,2.26495296,3462.4,3462.3,0.28907]
[1735878353150,2.55401296,3462.4,3462.3,0.28907]
[1735878355053,2.26313459,3462.4,3462.3,0.28907]
[1735878355254,0.28906,3462.4,3462.3,0.28907]
[1735878356247,3.39916608,3462.5,3462.3,0.28907]
[1735878356457,3.39916608,3462.4,3462.3,0.28907]
[1735878357558,3.68822608,3462.4,3462.3,0.28907]
[1735878357758,3.39916608,3462.4,3462.3,0.28907]
[1735878360246,4.82593998,3462.5,3462.3,0.28907]
[1735878361554,0.28905,3462.5,3462.4,0.28905]
[1735878361753,0.28906,3462.4,3462.3,0.28906]
[1735878361954,0.28906,3462.5,3462.3,0.28906]
[1735878362560,3.40002202,3462.4,3462.3,0.28906]
[1735878363860,3.40002202,3462.4,3462.3,3.49686]
[1735878364052,3.40002202,3462.4,3462.3,5.77731999]
[1735878364247,4.53688998,3462.5,3462.3,5.48825999]
[1735878364560,4.53688998,3462.5,3462.4,0.28906]
[1735878365354,3.83748998,3462.5,3462.4,0.28906]
[1735878365560,3.40288127,3462.7,3462.4,0.28906]
[1735878365755,3.40288127,3462.7,3462.6,0.28904]
[1735878366765,3.40288127,3462.8,3462.7,0.28903]
[1735878367060,3.69190127,3462.8,3462.7,0.28903]
[1735878367267,3.40288127,3462.8,3462.7,0.28903]
[1735878369365,3.69190127,3462.9,3462.4,1.113]
[1735878369568,3.69190127,3462.9,3462.8,0.28902]
[1735878372276,3.40288127,3462.9,3462.8,0.28902]
[1735878372576,3.69190127,3462.9,3462.7,0.28903]
[1735878372778,0.28904,3462.7,3462.5,0.28905]
[1735878373679,0.28904,3462.7,3462.6,0.28904]
[1735878374277,1.29118042,3462.7,3462.6,0.28904]
[1735878374479,1.29118042,3462.7,3462.5,0.28905]
[1735878374677,1.00214042,3462.6,3462.5,0.28905]
[1735878374983,0.28905,3462.5,3462.4,0.28906]
[1735878375683,4.40502169,3462.6,3462.3,3.2078]
[1735878375877,1.00214042,3462.4,3462.3,3.49687]
[1735878376275,3.40288127,3462.6,3462.5,0.28905]
[1735878380484,0.28904,3462.7,3462.5,0.28905]
[1735878381485,2.2799361,3462.9,3462.3,3.2078]
[1735878381684,0.28904,3462.6,3462.5,0.28905]
[1735878382087,0.28904,3462.7,3462.5,0.28905]
[1735878382381,0.28904,3462.7,3462.3,3.2078]
[1735878382687,0.28904,3462.7,3462.6,0.28904]
[1735878383385,7.96059624,3462.9,3462.0,0.72273]
[1735878383691,8.24961624,3462.9,3462.7,0.28903]